bitfinex/quotes_BTCUSD_20241102
["timestamp","ask_amount","ask_price","bid_price","bid_amount"]
[1730535924950,0.01218501,69740.0,69739.0,0.25682925]
[1730535925163,0.02561632,69740.0,69739.0,0.25682925]
[1730535925412,0.02561632,69740.0,69739.0,0.15645525]
[1730535925617,0.02561632,69740.0,69739.0,0.25682925]
[1730535927389,0.02561632,69740.0,69739.0,0.15645525]
[1730535928776,0.12598832,69740.0,69739.0,0.15645525]
[1730535929005,0.21848832,69740.0,69739.0,0.15645525]
[1730535929234,0.26138769,69740.0,69739.0,0.15645525]
[1730535929497,0.26138769,69740.0,69739.0,0.018]
[1730535929498,0.54104762,69740.0,69739.0,0.018]
[1730535929718,0.54106102,69740.0,69739.0,0.018]
[1730535929938,0.56750704,69740.0,69739.0,0.018]
[1730535930154,0.46025861,69740.0,69739.0,0.009]
[1730535930383,0.46025861,69740.0,69728.0,0.100389]
[1730535930384,0.100383,69733.0,69728.0,0.100389]
[1730535930617,0.02172943,69732.0,69729.0,0.13845525]
[1730535930832,0.11381731,69731.0,69729.0,0.13845525]
[1730535931088,0.01343131,69730.0,69729.0,0.13845525]
[1730535931326,0.02172966,69730.0,69729.0,0.13845525]
[1730535931544,0.12211666,69730.0,69729.0,0.13845525]
[1730535932191,0.10868535,69730.0,69729.0,0.13845525]
[1730535932409,0.12211104,69730.0,69729.0,0.13845525]
[1730535932623,0.12211104,69730.0,69729.0,0.14645525]
[1730535933051,0.12211104,69730.0,69729.0,0.14845525]
[1730535933273,0.12211104,69730.0,69729.0,0.13845525]
[1730535933486,0.12311104,69730.0,69729.0,0.14545525]
[1730535933697,0.12411104,69730.0,69729.0,0.15345525]
[1730535933914,0.12311104,69730.0,69729.0,0.14645525]
[1730535934358,0.12411104,69730.0,69729.0,0.15345525]
[1730535939474,0.12408141,69730.0,69729.0,0.15345525]
[1730535939699,0.16695523,69730.0,69729.0,0.15345525]
[1730535939935,0.11068535,69730.0,69729.0,0.15345525]
[1730535940151,0.12407953,69730.0,69729.0,0.15345525]
[1730535940829,0.16694743,69730.0,69729.0,0.15345525]
[1730535941691,0.12407953,69730.0,69729.0,0.15345525]
[1730535943226,0.12407499,69730.0,69729.0,0.15345525]
[1730535946613,0.11068535,69730.0,69729.0,0.15345525]
[1730535946837,0.12407285,69730.0,69729.0,0.15345525]
[1730535950409,0.12407408,69730.0,69729.0,0.15345525]
[1730535954117,0.1240794,69730.0,69729.0,0.15345525]
[1730535954764,0.1257234,69730.0,69729.0,0.15345525]
[1730535957166,0.1257234,69730.0,69729.0,0.015]
[1730535957383,0.2186234,69730.0,69729.0,0.015]
[1730535957635,0.28289253,69730.0,69729.0,0.015]
[1730535960572,0.38176406,69730.0,69729.0,0.015]
[1730535960789,0.28789121,69730.0,69729.0,0.015]
[1730535961003,0.35216212,69730.0,69729.0,0.015]
[1730535961180,0.28790615,69730.0,69729.0,0.015]
[1730535961428,0.21022935,69730.0,69729.0,0.015]
[1730535961644,0.22365016,69730.0,69729.0,0.015]
[1730535961856,0.28790782,69730.0,69729.0,0.015]
[1730535962086,0.28790826,69730.0,69729.0,0.015]
[1730535962312,0.38178274,69730.0,69729.0,0.015]
[1730535962522,0.4674579,69730.0,69729.0,0.015]
[1730535962732,0.38178274,69730.0,69729.0,0.015]
[1730535963808,0.38177771,69730.0,69729.0,0.015]
[1730535964670,0.46745132,69730.0,69729.0,0.015]
[1730535964911,0.38177771,69730.0,69729.0,0.015]
[1730535965606,0.48887099,69730.0,69729.0,0.015]
[1730535965815,0.38177771,69730.0,69729.0,0.015]
[1730535966701,0.48887099,69730.0,69729.0,0.015]
[1730535968427,0.39597099,69730.0,69729.0,0.015]
[1730535968650,0.28387771,69730.0,69729.0,0.15345525]
[1730535968879,0.36958681,69730.0,69729.0,0.15345525]
[1730535970944,0.35617083,69730.0,69729.0,0.15345525]
[1730535971138,0.36958428,69730.0,69729.0,0.15345525]
[1730535971825,0.28387518,69730.0,69729.0,0.15345525]
[1730535972735,0.39096846,69730.0,69729.0,0.15345525]
[1730535973447,0.28387518,69730.0,69729.0,0.15345525]
[1730535973669,0.39096846,69730.0,69729.0,0.15345525]
[1730535974551,0.37755501,69730.0,69729.0,0.15345525]
[1730535974791,0.28387617,69730.0,69729.0,0.15345525]
[1730535975927,0.18348917,69730.0,69729.0,0.15345525]
[1730535976147,0.28387617,69730.0,69729.0,0.15345525]
[1730535977504,0.18348917,69730.0,69729.0,0.15345525]
[1730535978375,0.02535679,69730.0,69729.0,0.15345525]
[1730535978636,0.12574379,69730.0,69729.0,0.15345525]
[1730535979062,0.02535679,69730.0,69729.0,0.15345525]
[1730535979277,0.12574379,69730.0,69729.0,0.15345525]
[1730535979499,0.18380943,69730.0,69729.0,0.15345525]
[1730535979719,0.18380943,69730.0,69729.0,0.53633672]
[1730535979936,0.18380943,69730.0,69729.0,0.42754325]
[1730535980168,0.02535679,69730.0,69729.0,0.42754325]
[1730535980390,0.02535679,69730.0,69729.0,0.53633672]
[1730535980612,0.01705844,69730.0,69729.0,0.53633672]
[1730535981314,0.01705844,69730.0,69729.0,0.42754325]
[1730535981547,0.01705844,69730.0,69729.0,0.24405525]
[1730535981762,0.01705887,69730.0,69729.0,0.15345525]
[1730535982253,0.02528544,69730.0,69729.0,0.15345525]
[1730535982526,0.12567244,69730.0,69729.0,0.15345525]
[1730535984084,0.17839318,69730.0,69729.0,0.15345525]
[1730535984308,0.02528544,69730.0,69729.0,0.15345525]
[1730535984551,0.02528544,69730.0,69729.0,0.25384325]
[1730535985048,0.01705887,69730.0,69729.0,0.53633672]
[1730535985499,0.01705807,69730.0,69729.0,0.53633672]
[1730535986650,0.0599865,69730.0,69729.0,0.53633672]
[1730535987075,0.06822272,69730.0,69729.0,0.53633672]
[1730535987533,0.02529429,69730.0,69729.0,0.53633672]
[1730535988663,0.02528947,69730.0,69729.0,0.53633672]
[1730535989118,0.01705325,69730.0,69729.0,0.53633672]
[1730535993195,0.003644,69730.0,69729.0,0.53633672]
[1730535993436,0.01705011,69730.0,69729.0,0.53633672]
[1730535996601,0.01705115,69730.0,69729.0,0.53633672]
[1730535999735,0.01705109,69730.0,69729.0,0.53633672]
[1730536001837,0.01705109,69730.0,69729.0,0.42754325]
[1730536004605,0.00364394,69730.0,69729.0,0.42754325]
[1730536004820,0.01705593,69730.0,69729.0,0.42754325]
[1730536008050,0.01706015,69730.0,69729.0,0.42754325]
[1730536012495,0.01706015,69730.0,69729.0,0.42836525]
[1730536018205,0.01707059,69730.0,69729.0,0.42836525]
[1730536019328,0.18180487,69730.0,69729.0,0.15427725]
[1730536019550,0.26220487,69730.0,69729.0,0.15427725]
[1730536019771,0.45035962,69730.0,69729.0,0.15427725]
[1730536020696,0.36456012,69730.0,69729.0,0.15427725]
[1730536021138,0.47187129,69730.0,69729.0,0.15427725]
[1730536021358,0.36456012,69730.0,69729.0,0.15427725]
[1730536021806,0.36456012,69730.0,69729.0,0.015822]
[1730536022032,0.46126012,69730.0,69729.0,0.015822]
[1730536022266,0.46125393,69730.0,69729.0,0.015822]
[1730536023383,0.46625393,69730.0,69729.0,0.015822]
[1730536024457,0.46425399,69730.0,69729.0,0.000822]
[1730536024692,0.46425399,69730.0,69729.0,0.003822]
[1730536024912,0.45083353,69730.0,69729.0,0.006822]
[1730536025125,0.46424613,69730.0,69729.0,0.006822]
[1730536027183,0.46424613,69730.0,69729.0,0.000822]
[1730536027406,0.5730396,69730.0,69729.0,0.004822]
[1730536028370,0.5730127,69730.0,69729.0,0.002822]
[1730536028615,0.5596001,69730.0,69729.0,0.003822]
[1730536028834,0.57300859,69730.0,69729.0,0.003822]
[1730536029290,0.46421512,69730.0,69729.0,0.001822]
[1730536029520,0.46421512,69730.0,69729.0,0.002822]
[1730536029749,0.46421512,69730.0,69729.0,0.001822]
[1730536030466,0.46421512,69730.0,69729.0,0.000822]
[1730536031605,0.46521512,69730.0,69729.0,0.000822]
[1730536032576,0.46621512,69730.0,69729.0,0.000822]
[1730536033804,0.005,69710.0,69706.0,0.00579069]
[1730536034047,0.005,69710.0,69704.0,0.000811]
[1730536034048,0.100418,69708.0,69704.0,0.00086069]
[1730536034254,0.35793673,69708.0,69704.0,0.00086069]
[1730536034511,0.20836519,69708.0,69704.0,0.00086069]
[1730536034729,0.18687884,69708.0,69704.0,0.00086069]
[1730536035212,0.18687884,69708.0,69707.0,0.007811]
[1730536035669,0.16542635,69708.0,69707.0,0.007811]
[1730536035916,0.16542635,69708.0,69707.0,0.008811]
[1730536035917,0.17842635,69708.0,69707.0,0.008811]
[1730536036179,0.16542635,69708.0,69707.0,0.007811]
[1730536036393,0.17542635,69708.0,69707.0,0.008811]
[1730536036630,0.13258446,69708.0,69707.0,0.008811]
[1730536036851,0.13258446,69708.0,69707.0,0.001811]
[1730536037098,0.14158446,69708.0,69707.0,0.002811]
[1730536042039,0.23958446,69708.0,69707.0,0.002811]
[1730536049713,0.23953759,69708.0,69707.0,0.002811]
[1730536051095,0.23763399,69708.0,69707.0,0.002311]
[1730536057546,0.23764018,69708.0,69707.0,0.002311]
[1730536057774,0.14464018,69708.0,69707.0,0.002311]
[1730536059567,0.14628418,69708.0,69707.0,0.002311]
[1730536060444,0.14129485,69708.0,69707.0,0.002311]
[1730536070549,0.18407181,69708.0,69707.0,0.002311]
[1730536071667,0.18907181,69708.0,69707.0,0.002311]
[1730536071889,0.2104603,69708.0,69707.0,0.002311]
[1730536072334,0.14629485,69708.0,69707.0,0.002311]
[1730536072553,0.2104603,69708.0,69707.0,0.002311]
[1730536073629,0.2054603,69708.0,69707.0,0.002311]
[1730536073846,0.2055249,69708.0,69707.0,0.002311]
[1730536074481,0.29939578,69708.0,69707.0,0.002311]
[1730536075566,0.38503585,69708.0,69707.0,0.002311]
[1730536075772,0.49382932,69708.0,69707.0,0.002311]
[1730536075983,0.51523934,69708.0,69707.0,0.002311]
[1730536076723,0.51533316,69708.0,69707.0,0.002311]
[1730536077173,0.40653969,69708.0,69707.0,0.002311]
[1730536077596,0.29939578,69708.0,69707.0,0.002311]
[1730536078626,0.29943637,69708.0,69707.0,0.002311]
[1730536079316,0.41322984,69708.0,69707.0,0.002311]
[1730536079549,0.45795762,69708.0,69707.0,0.002311]
[1730536081091,0.44453855,69708.0,69707.0,0.002311]
[1730536081334,0.4579579,69708.0,69707.0,0.002311]
[1730536082859,0.41323012,69708.0,69707.0,0.002311]
[1730536085746,0.45796259,69708.0,69707.0,0.002311]
[1730536086730,0.41323012,69708.0,69707.0,0.002311]
[1730536087162,0.45796331,69708.0,69707.0,0.002311]
[1730536087820,0.44454396,69708.0,69707.0,0.002311]
[1730536088008,0.45796513,69708.0,69707.0,0.002311]
[1730536090774,0.2998642,69708.0,69707.0,0.002311]
[1730536091002,0.45838667,69708.0,69707.0,0.002311]
[1730536091205,0.4449655,69708.0,69707.0,0.002311]
[1730536091459,0.45838716,69708.0,69707.0,0.002311]
[1730536094563,0.4449655,69708.0,69707.0,0.002311]
[1730536094787,0.4583877,69708.0,69707.0,0.002311]
[1730536098336,0.45839168,69708.0,69707.0,0.002311]
[1730536098795,0.45839203,69708.0,69707.0,0.002311]
[1730536101915,0.45847428,69708.0,69707.0,0.002311]
[1730536105495,0.44504775,69708.0,69707.0,0.002311]
[1730536105699,0.45847846,69708.0,69707.0,0.002311]
[1730536109819,0.4584785,69708.0,69707.0,0.002311]
[1730536113838,0.45847674,69708.0,69707.0,0.002311]
[1730536116593,0.45847599,69708.0,69707.0,0.002311]
[1730536118405,0.45848835,69708.0,69707.0,0.002311]
[1730536123718,0.45848867,69708.0,69707.0,0.002311]
[1730536131312,0.45849009,69708.0,69707.0,0.002311]
[1730536132318,0.29987477,69708.0,69707.0,0.002311]
[1730536132579,0.45851478,69708.0,69707.0,0.002311]
[1730536134264,0.70712254,69708.0,69707.0,0.002311]
[1730536134500,0.70912254,69708.0,69707.0,0.002311]
[1730536134721,0.66930825,69708.0,69707.0,0.002311]
[1730536135197,0.20922347,69700.0,69699.0,0.0057368]
[1730536135399,0.42602841,69700.0,69699.0,0.0057368]
[1730536135634,0.43444682,69700.0,69699.0,0.0057368]
[1730536136266,0.38971363,69700.0,69699.0,0.0057368]
[1730536137762,0.39071363,69700.0,69699.0,0.0057368]
[1730536139535,0.39571363,69700.0,69699.0,0.0057368]
[1730536141461,0.39569795,69700.0,69699.0,0.0057368]
[1730536150678,0.39569795,69700.0,69699.0,0.0065588]
[1730536150915,0.92828053,69700.0,69699.0,0.00023322]
[1730536151145,0.66609041,69700.0,69699.0,0.00023322]
[1730536151364,0.66609041,69700.0,69684.0,0.1802]
[1730536151365,0.100452,69685.0,69684.0,0.1802]
[1730536151589,0.25909201,69685.0,69684.0,0.1802]
[1730536152026,0.26746937,69685.0,69684.0,0.1802]
[1730536153401,0.37466715,69685.0,69684.0,0.1802]
[1730536153618,0.40916994,69685.0,69684.0,0.1802]
[1730536153892,0.41016994,69685.0,69684.0,0.1802]
[1730536154805,0.39676278,69685.0,69684.0,0.1802]
[1730536155914,0.37531132,69685.0,69684.0,0.1802]
[1730536156363,0.37531132,69685.0,69684.0,0.0978]
[1730536156609,0.26811356,69685.0,69684.0,0.0978]
[1730536156829,0.16766156,69685.0,69681.0,0.0791]
[1730536157043,0.100457,69681.0,69679.0,0.0915]
[1730536157446,0.10883464,69681.0,69679.0,0.0915]
[1730536158625,0.16168672,69681.0,69679.0,0.0915]
[1730536158846,0.18654064,69681.0,69679.0,0.0915]
[1730536159070,0.19726492,69681.0,69679.0,0.0915]
[1730536159295,0.19726492,69681.0,69680.0,0.171411]
[1730536159296,0.32259097,69681.0,69680.0,0.171411]
[1730536159519,0.20795656,69681.0,69680.0,0.171411]
[1730536159741,0.30184664,69681.0,69680.0,0.171411]
[1730536159967,0.31084664,69681.0,69680.0,0.171411]
[1730536160200,0.31884664,69681.0,69680.0,0.171411]
[1730536160421,0.30984664,69681.0,69680.0,0.171411]
[1730536160863,0.32084664,69681.0,69680.0,0.171411]
[1730536161087,0.40656905,69681.0,69680.0,0.171411]
[1730536161308,0.39856905,69681.0,69680.0,0.171411]
[1730536161751,0.40856905,69681.0,69680.0,0.171411]
[1730536162011,0.39846799,69681.0,69680.0,0.171411]
[1730536162279,0.38746799,69681.0,69680.0,0.171411]
[1730536162493,0.40846799,69681.0,69680.0,0.171411]
[1730536162709,0.4084384,69681.0,69680.0,0.171411]
[1730536162900,0.4074384,69681.0,69680.0,0.171411]
[1730536163368,0.4184384,69681.0,69680.0,0.171411]
[1730536163594,0.23892502,69681.0,69680.0,0.171411]
[1730536166093,0.21750892,69681.0,69680.0,0.171411]
[1730536166504,0.17468856,69681.0,69680.0,0.171411]
[1730536167411,0.21750819,69681.0,69680.0,0.171411]
[1730536167853,0.1746412,69681.0,69680.0,0.171411]
[1730536168068,0.21746083,69681.0,69680.0,0.171411]
[1730536168712,0.1746412,69681.0,69680.0,0.171411]
[1730536170913,0.17464636,69681.0,69680.0,0.171411]
[1730536172053,0.21746915,69681.0,69680.0,0.171411]
[1730536172256,0.17464636,69681.0,69680.0,0.171411]
[1730536172466,0.21747068,69681.0,69680.0,0.171411]
[1730536173389,0.21747357,69681.0,69680.0,0.171411]
[1730536176248,0.17464636,69681.0,69680.0,0.171411]
[1730536177096,0.23890247,69681.0,69680.0,0.171411]
[1730536177543,0.17464636,69681.0,69680.0,0.171411]
[1730536177968,0.23891035,69681.0,69680.0,0.171411]
[1730536178234,0.33281468,69681.0,69680.0,0.171411]
[1730536178663,0.17464636,69681.0,69680.0,0.171411]
[1730536179289,0.17464636,69681.0,69680.0,0.092311]
[1730536179290,0.33283793,69681.0,69680.0,0.092311]
[1730536179958,0.33283793,69681.0,69680.0,0.000811]
[1730536180174,0.41851275,69681.0,69680.0,0.000811]
[1730536181052,0.3328492,69681.0,69680.0,0.000811]
[1730536181236,0.41856652,69681.0,69680.0,0.000811]
[1730536181477,0.33293023,69681.0,69680.0,0.000811]
[1730536182972,0.17472739,69681.0,69680.0,0.000811]
[1730536183191,0.33295393,69681.0,69680.0,0.000811]
[1730536183442,0.41867643,69681.0,69680.0,0.000811]
[1730536185042,0.23903269,69681.0,69680.0,0.000811]
[1730536185271,0.23903269,69681.0,69680.0,0.13926625]
[1730536185272,0.13857569,69681.0,69680.0,0.13926625]
[1730536185738,0.13858171,69681.0,69680.0,0.13926625]
[1730536185956,0.23903871,69681.0,69680.0,0.23176625]
[1730536186184,0.41872276,69681.0,69680.0,0.23176625]
[1730536186407,0.41872276,69681.0,69680.0,0.13926625]
[1730536186616,0.33298074,69681.0,69680.0,0.13926625]
[1730536187264,0.41872276,69681.0,69680.0,0.13926625]
[1730536188366,0.29808416,69681.0,69680.0,0.13926625]
[1730536188632,0.33298032,69681.0,69680.0,0.13926625]
[1730536188838,0.29808416,69681.0,69680.0,0.13926625]
[1730536189046,0.33298036,69681.0,69680.0,0.13926625]
[1730536190106,0.41874805,69681.0,69680.0,0.13926625]
[1730536190520,0.33298036,69681.0,69680.0,0.13926625]
[1730536192384,0.44015951,69681.0,69680.0,0.13926625]
[1730536192809,0.23252336,69681.0,69680.0,0.31096625]
[1730536193266,0.23252336,69681.0,69680.0,0.41142525]
[1730536193484,0.33970251,69681.0,69680.0,0.41142525]
[1730536194609,0.33970251,69681.0,69680.0,0.31096625]
[1730536194825,0.34000345,69681.0,69680.0,0.31096625]
[1730536195272,0.34000345,69681.0,69680.0,0.41142525]
[1730536195500,0.19780949,69681.0,69680.0,0.31096625]
[1730536195729,0.23271295,69681.0,69680.0,0.31096625]
[1730536197064,0.23271295,69681.0,69680.0,0.41142525]
[1730536198153,0.23271295,69681.0,69680.0,0.31096625]
[1730536199284,0.0742811,69681.0,69680.0,0.41142525]
[1730536199698,0.2328151,69681.0,69680.0,0.41142525]
[1730536200775,0.18165502,69681.0,69680.0,0.41142525]
[1730536201027,0.16018446,69681.0,69680.0,0.41142525]
[1730536201234,0.07428022,69681.0,69680.0,0.41142525]
[1730536201486,0.13870846,69681.0,69680.0,0.41142525]
[1730536201696,0.10771114,69681.0,69680.0,0.41142525]
[1730536201915,0.11071114,69681.0,69680.0,0.41142525]
[1730536202343,0.10871114,69681.0,69680.0,0.41142525]
[1730536202550,0.10771114,69681.0,69680.0,0.41142525]
[1730536202756,0.0442829,69681.0,69680.0,0.41142525]
[1730536202974,0.0452829,69681.0,69680.0,0.41142525]
[1730536204032,0.0442829,69681.0,69680.0,0.41142525]
[1730536204474,0.0452829,69681.0,69680.0,0.41342525]
[1730536204682,0.08821511,69681.0,69680.0,0.41342525]
[1730536206858,0.08820861,69681.0,69680.0,0.41342525]
[1730536207310,0.08720861,69681.0,69680.0,0.41142525]
[1730536207786,0.08820861,69681.0,69680.0,0.41242525]
[1730536208233,0.08620861,69681.0,69680.0,0.41142525]
[1730536208671,0.0452829,69681.0,69680.0,0.41242525]
[1730536209333,0.0462829,69681.0,69680.0,0.41242525]
[1730536212279,0.04625474,69681.0,69680.0,0.41242525]
[1730536215154,0.04625474,69681.0,69680.0,0.31196625]
[1730536216746,0.04625474,69681.0,69680.0,0.41242525]
[1730536217616,0.04619762,69681.0,69680.0,0.41242525]
[1730536218697,0.01132052,69681.0,69680.0,0.41242525]
[1730536222440,0.04620703,69681.0,69680.0,0.41242525]
[1730536222652,0.04420703,69681.0,69680.0,0.41242525]
[1730536222864,0.03588651,69681.0,69680.0,0.41242525]
[1730536223079,0.03688651,69681.0,69680.0,0.41242525]
[1730536223485,0.03588651,69681.0,69680.0,0.41142525]
[1730536223925,0.03488651,69681.0,69680.0,0.41142525]
[1730536224614,0.03588651,69681.0,69680.0,0.41242525]
[1730536224826,0.04420474,69681.0,69680.0,0.41242525]
[1730536225047,0.04320474,69681.0,69680.0,0.41142525]
[1730536225474,0.04420474,69681.0,69680.0,0.41242525]
[1730536225692,0.04520474,69681.0,69680.0,0.41242525]
[1730536225909,0.03688651,69681.0,69680.0,0.41242525]
[1730536226337,0.001,69681.0,69680.0,0.41242525]
[1730536226548,0.03589697,69681.0,69680.0,0.41242525]
[1730536226782,0.03589697,69681.0,69680.0,0.41142525]
[1730536227193,0.03689697,69681.0,69680.0,0.41242525]
[1730536230170,0.03589697,69681.0,69680.0,0.41142525]
[1730536230643,0.03689697,69681.0,69680.0,0.41242525]
[1730536232313,0.03589697,69681.0,69680.0,0.41242525]
[1730536232715,0.002,69681.0,69680.0,0.41242525]
[1730536233002,0.03691182,69681.0,69680.0,0.41242525]
[1730536236232,0.03691182,69681.0,69680.0,0.41742525]
[1730536236442,0.03691099,69681.0,69680.0,0.41742525]
[1730536236910,0.03691041,69681.0,69680.0,0.41742525]
[1730536244101,0.03690196,69681.0,69680.0,0.41742525]
[1730536245013,0.03690196,69681.0,69680.0,0.41242525]
[1730536245245,0.03690196,69681.0,69680.0,0.41742525]
[1730536246314,0.03690196,69681.0,69680.0,0.41242525]
[1730536246529,0.03690196,69681.0,69680.0,0.41742525]
[1730536248032,0.03690196,69681.0,69680.0,0.41242525]
[1730536248245,0.03690196,69681.0,69680.0,0.41742525]
[1730536250878,0.03690196,69681.0,69680.0,0.41242525]
[1730536251103,0.03690196,69681.0,69680.0,0.41742525]
[1730536256389,0.03690196,69681.0,69680.0,0.41242525]
[1730536256592,0.03690196,69681.0,69680.0,0.41742525]
[1730536257550,0.03690979,69681.0,69680.0,0.41742525]
[1730536258245,0.03690974,69681.0,69680.0,0.41742525]
[1730536260711,0.03690974,69681.0,69680.0,0.33822525]
[1730536261789,0.03690932,69681.0,69680.0,0.33822525]
[1730536262200,0.03690932,69681.0,69680.0,0.24572525]
[1730536265773,0.03690932,69681.0,69680.0,0.24072525]
[1730536265999,0.04956266,69681.0,69680.0,0.24072525]
[1730536266217,0.09251734,69681.0,69680.0,0.24072525]
[1730536267368,0.09151734,69681.0,69680.0,0.23972525]
[1730536267628,0.09151734,69681.0,69680.0,0.24072525]
[1730536267854,0.09251025,69681.0,69680.0,0.24072525]
[1730536268071,0.09151025,69681.0,69680.0,0.23972525]
[1730536268288,0.09051025,69681.0,69680.0,0.23972525]
[1730536268488,0.09151025,69681.0,69680.0,0.23972525]
[1730536268692,0.09151025,69681.0,69680.0,0.24472525]
[1730536270047,0.09251025,69681.0,69680.0,0.24572525]
[1730536270471,0.09251025,69681.0,69680.0,0.24072525]
[1730536270901,0.09250756,69681.0,69680.0,0.24072525]
[1730536271087,0.09250659,69681.0,69680.0,0.24072525]
[1730536271788,0.09250659,69681.0,69680.0,0.14026625]
[1730536272231,0.18340659,69681.0,69680.0,0.14026625]
[1730536275664,0.18340659,69681.0,69680.0,0.24072525]
[1730536275899,0.18339514,69681.0,69680.0,0.24072525]
[1730536276132,0.18339514,69681.0,69680.0,0.14026625]
[1730536277726,0.1484956,69681.0,69680.0,0.14026625]
[1730536277953,0.18338186,69681.0,69680.0,0.14026625]
[1730536278190,0.1484956,69681.0,69680.0,0.14026625]
[1730536278407,0.18338186,69681.0,69680.0,0.14026625]
[1730536279028,0.28383886,69681.0,69680.0,0.14026625]
[1730536279497,0.48527789,69681.0,69680.0,0.14026625]
[1730536279911,0.39939337,69681.0,69680.0,0.14026625]
[1730536280393,0.39938238,69681.0,69680.0,0.14026625]
[1730536280847,0.38478337,69681.0,69680.0,0.14026625]
[1730536281312,0.48524037,69681.0,69680.0,0.14026625]
[1730536281550,0.39938238,69681.0,69680.0,0.14026625]
[1730536281791,0.44469612,69681.0,69680.0,0.14026625]
[1730536282040,0.58690128,69681.0,69680.0,0.14026625]
[1730536282472,0.58590128,69681.0,69680.0,0.14026625]
[1730536282699,0.47956699,69681.0,69680.0,0.14026625]
[1730536282965,0.47856699,69681.0,69680.0,0.13926625]
[1730536283198,0.47956699,69681.0,69680.0,0.14026625]
[1730536283442,0.58690128,69681.0,69680.0,0.14026625]
[1730536283671,0.47856699,69681.0,69680.0,0.13926625]
[1730536284108,0.47756699,69681.0,69680.0,0.14026625]
[1730536284818,0.47755196,69681.0,69680.0,0.14026625]
[1730536286076,0.31906618,69681.0,69680.0,0.14026625]
[1730536286722,0.47744604,69681.0,69680.0,0.14026625]
[1730536288361,0.4425902,69681.0,69680.0,0.14026625]
[1730536288591,0.47742503,69681.0,69680.0,0.14026625]
[1730536288799,0.47742234,69681.0,69680.0,0.14026625]
[1730536289008,0.47742234,69681.0,69680.0,0.13926625]
[1730536289213,0.47742234,69681.0,69680.0,0.14026625]
[1730536289842,0.31904248,69681.0,69680.0,0.14026625]
[1730536292042,0.3190365,69681.0,69680.0,0.14026625]
[1730536295080,0.3190365,69681.0,69680.0,0.13926625]
[1730536295547,0.3280365,69681.0,69680.0,0.13926625]
[1730536295792,0.32804062,69681.0,69680.0,0.13926625]
[1730536296645,0.33704062,69681.0,69680.0,0.13926625]
[1730536299863,0.40132913,69681.0,69680.0,0.13926625]
[1730536300088,0.3370441,69681.0,69680.0,0.13926625]
[1730536300748,0.40133129,69681.0,69680.0,0.13926625]
[1730536302054,0.40133129,69681.0,69680.0,0.14219025]
[1730536302988,0.36649753,69681.0,69680.0,0.14219025]
[1730536303208,0.36649753,69681.0,69680.0,0.003735]
[1730536303209,0.40133665,69681.0,69680.0,0.003735]
[1730536303631,0.33704946,69681.0,69680.0,0.003735]
[1730536305164,0.6023957,69681.0,69680.0,0.003735]
[1730536305379,0.49524819,69681.0,69680.0,0.003735]
[1730536310488,0.49526119,69681.0,69680.0,0.003735]
[1730536310959,0.60238119,69681.0,69680.0,0.003735]
[1730536312474,0.6023808,69681.0,69680.0,0.003735]
[1730536313134,0.60235718,69681.0,69680.0,0.003735]
[1730536313353,0.52215718,69681.0,69680.0,0.003735]
[1730536313832,0.43125718,69681.0,69680.0,0.003735]
[1730536314035,0.32413494,69681.0,69680.0,0.003735]
[1730536317138,0.37499632,69681.0,69680.0,0.003735]
[1730536317362,0.40984909,69681.0,69680.0,0.003735]
[1730536317583,0.32417297,69681.0,69680.0,0.003735]
[1730536320660,0.39646761,69681.0,69680.0,0.003735]
[1730536320866,0.43132144,69681.0,69680.0,0.003735]
[1730536321342,0.43132135,69681.0,69680.0,0.003735]
[1730536323631,0.32417394,69681.0,69680.0,0.003735]
[1730536325471,0.32430111,69681.0,69680.0,0.003735]
[1730536327049,0.28944737,69681.0,69680.0,0.003735]
[1730536327462,0.32430481,69681.0,69680.0,0.003735]
[1730536330846,0.32431269,69681.0,69680.0,0.003735]
[1730536334726,0.32440579,69681.0,69680.0,0.003735]
[1730536337915,0.28954047,69681.0,69680.0,0.003735]
[1730536338146,0.32442185,69681.0,69680.0,0.003735]
[1730536339255,0.16599172,69681.0,69680.0,0.003735]
[1730536339393,0.32443028,69681.0,69680.0,0.003735]
[1730536341837,0.2895489,69681.0,69680.0,0.003735]
[1730536342184,0.32443861,69681.0,69680.0,0.003735]
[1730536343969,0.22398161,69681.0,69680.0,0.14219025]
[1730536344599,0.33130267,69681.0,69680.0,0.14219025]
[1730536348515,0.33132727,69681.0,69680.0,0.14219025]
[1730536348735,0.12993885,69681.0,69680.0,0.41354925]
[1730536349151,0.10847389,69681.0,69680.0,0.41354925]
[1730536349385,0.03065334,69681.0,69680.0,0.41354925]
[1730536349631,0.06552831,69681.0,69680.0,0.41354925]
[1730536351887,0.04406679,69681.0,69680.0,0.41354925]
[1730536352822,0.04405855,69681.0,69680.0,0.41354925]
[1730536353022,0.06550683,69681.0,69680.0,0.41354925]
[1730536356307,0.03065334,69681.0,69680.0,0.41354925]
[1730536356521,0.06548805,69681.0,69680.0,0.41354925]
[1730536359920,0.03065334,69681.0,69680.0,0.41354925]
[1730536360133,0.06548382,69681.0,69680.0,0.41354925]
[1730536361796,0.05283048,69681.0,69680.0,0.41354925]
[1730536362525,0.05282825,69681.0,69680.0,0.41354925]
[1730536367207,0.03482825,69681.0,69680.0,0.41354925]
[1730536367443,0.03483317,69681.0,69680.0,0.41774925]
[1730536367676,0.03683317,69681.0,69680.0,0.41874925]
[1730536367911,0.01539737,69681.0,69680.0,0.41874925]
[1730536368137,0.01439737,69681.0,69680.0,0.41874925]
[1730536368368,0.01439737,69681.0,69680.0,0.41774925]
[1730536368592,0.01539737,69681.0,69680.0,0.41874925]
[1730536369738,0.01439737,69681.0,69680.0,0.54316117]
[1730536369976,0.01439737,69681.0,69680.0,0.41874925]
[1730536370194,0.01439737,69681.0,69680.0,0.41974925]
[1730536370786,0.01539978,69681.0,69680.0,0.42174925]
[1730536374116,0.002,69681.0,69680.0,0.42174925]
[1730536374339,0.01540397,69681.0,69680.0,0.42174925]
[1730536378112,0.002,69681.0,69680.0,0.42174925]
[1730536378335,0.0154088,69681.0,69680.0,0.42174925]
[1730536381244,0.0154111,69681.0,69680.0,0.42174925]
[1730536382443,0.03686094,69681.0,69680.0,0.42174925]
[1730536383893,0.03686094,69681.0,69680.0,0.24664925]
[1730536384133,0.02344981,69681.0,69680.0,0.24664925]
[1730536384359,0.01540613,69681.0,69680.0,0.24664925]
[1730536385292,0.03685625,69681.0,69680.0,0.24664925]
[1730536388352,0.03685766,69681.0,69680.0,0.24664925]
[1730536389458,0.01540679,69681.0,69680.0,0.24664925]
[1730536391562,0.002,69681.0,69680.0,0.24664925]
[1730536391757,0.01540793,69681.0,69680.0,0.24664925]
[1730536392614,0.01540793,69681.0,69680.0,0.33764925]
[1730536395433,0.01541013,69681.0,69680.0,0.33764925]
[1730536399410,0.002,69681.0,69680.0,0.33764925]